Cogmind - Beta 12 @@@ ROGUE MODE // 2024.02.05 @ 08:14:17 Player: Dosh Result: Destroyed by as-99779 with Assembled Maul Performance ------------- Evolutions (1) 500 Regions Visited (4) 800 Robots Destroyed (57) 285 Value Destroyed (1363) 1363 Prototype IDs (8) 160 Alien Tech Used (0) 0 Bonus (-118) -118 TOTAL SCORE: 2990 Bonus ------- Follower Combat Kills 7 Friendly Fire -125 Cogmind --------- Core Integrity 0/400 Matter 245/300 Energy 74/100 System Corruption 2% Temperature Cool (0) Movement Core (350) Ox6 Location -9/Mines Parts ------- > --- POWER (1) -------- (None) > --- PROPULSION (2) --- (None) > --- UTILITY (3) ------ Large Storage Unit > --- WEAPON (3) ------- (None) > --- INVENTORY (15) --- Deuterium Engine Light Treads Light Treads Cooling System Huge Storage Unit Faulty Experimental Sensor Array Seismic Detector Shield Generator Long-range Tractor Beam EM Pulse Gun Light Cannon Light Cannon Peak State ------------ > --- POWER ------------ Deuterium Engine > --- PROPULSION ------- Light Treads Light Treads > --- UTILITY ---------- Large Storage Unit Bomb Drone Bay > --- WEAPON ----------- Assault Rifle Light Assault Rifle Autogun > --- INVENTORY -------- Light Ion Engine Light Treads Light Treads Huge Storage Unit Experimental Sensor Array Seismic Detector Light Armor Plating Shield Generator Shield Generator EM Pulse Gun Light Assault Rifle Light Cannon Light Cannon Rocket Launcher Mining Claw [Rating: 26] Favorites ----------- Power Ion Engine Engine Ion Engine Propulsion Light Treads Treads Light Treads Utility Large Storage Unit Device Shield Generator Storage Large Storage Unit Protection Hardened Light Armor Plating Weapon Assault Rifle Ballistic Gun Assault Rifle Ballistic Cannon Light Cannon Launcher Rocket Launcher Build | -11 -10 -10 -9 -9 ------- Run | Jun Mat Min Mat Min Slots Evolved 2 | . . . 2 . Power . | . . . . . Propulsion . | . . . . . Utility 1 | . . . 1 . Weapon 1 | . . . 1 . Parts Attached 30 | 6 8 1 13 2 Power 2 | 1 . . 1 . Engine 2 | 1 . . 1 . Core . | . . . . . Reactor . | . . . . . Propulsion 10 | 2 3 . 5 . Treads 10 | 2 3 . 5 . Leg . | . . . . . Wheel . | . . . . . Hover . | . . . . . Flight . | . . . . . Utility 7 | 1 2 1 3 . Device 4 | . 1 1 2 . Storage 2 | 1 1 . . . Processor . | . . . . . Hackware . | . . . . . Protection 1 | . . . 1 . Artifact . | . . . . . Weapon 11 | 2 3 . 4 2 Energy Gun . | . . . . . Energy Cannon . | . . . . . Ballistic Gun 9 | 2 2 . 4 1 Ballistic Cannon 1 | . 1 . . . Launcher 1 | . . . . 1 Special Weapon . | . . . . . Impact Weapon . | . . . . . Slashing Weapon . | . . . . . Piercing Weapon . | . . . . . Special Melee Weapon . | . . . . . Unidentified Prototypes 1 | . . . 1 . Parts Lost 12 | . . 1 2 9 Power 1 | . . . . 1 Propulsion 2 | . . . . 2 Utility 4 | . . 1 1 2 Weapon 5 | . . . 1 4 Highest Loss Streak 9 | . . 1 1 9 To Critical Strikes 1 | . . . 1 . Average Slot Usage (%) 93 | . 99 99 87 82 Engine 12 | . 14 14 11 4 Treads 24 | . 28 28 22 18 Device 12 | . 13 13 11 9 Storage 12 | . 14 14 11 11 Ballistic Gun 24 | . 17 14 32 25 Ballistic Cannon 6 | . 10 14 . . Naked Turns . | . . . . . Heaviest Build 43 | 13 32 32 43 40 Greatest Support 40 | 40 40 40 40 40 Greatest Overweight (x) 1 | . . . 1 . Average Overweight (x) . | . . . . . Largest Inventory Capacity 15 | 8 15 15 15 15 Average Capacity 13 | 7 11 15 15 15 Most Carried 15 | 3 11 15 15 13 Average Carried 12 | 1 8 13 14 12 Final Capacity 15 | 8 15 15 15 15 Final Carried 14 | 3 11 14 13 12 Class Distribution -------------------- 52% | Mutant 38% | Gunner 8% | Tank Dominant Class ---------------- Mutant | -10/Materials Mutant | -10/Mines Gunner | -9/Materials Mutant | -9/Mines Resources | -11 -10 -10 -9 -9 ----------- Run | Jun Mat Min Mat Min Matter Collected 1306 | 256 279 188 580 3 Remotely . | . . . . . Salvage Created 1801 | . 516 267 959 59 Parts 120 | . 39 13 66 2 Haulers Intercepted 4 | . 2 . 2 . Recyclers Shooed 1 | . . . 1 . Parts Field Recycled . | . . . . . Retrieved Matter . | . . . . . Parts Self-Destructed . | . . . . . Prevented . | . . . . . Kills | -11 -10 -10 -9 -9 ------- Run | Jun Mat Min Mat Min Combat Hostiles Destroyed 47 | . 12 8 20 7 Melee 1 | . 1 . . . Guns 38 | . 9 5 20 4 Cannons 5 | . 2 3 . . AOE 3 | . . . . 3 Classes Destroyed 11 | . 5 1 4 1 Worker 2 | . 1 . 1 . Tunneler 2 | . . 1 . 1 Hauler 4 | . 2 . 2 . Recycler 2 | . . . 2 . Operator 2 | . . . 2 . Watcher 4 | . 2 . 2 . Swarmer 13 | . 3 4 6 . Grunt 18 | . 9 4 5 . Duelist 1 | . . . 1 . Sentry 8 | . . . 8 . Assembled 7 | . . . . 7 Thug 1 | . . 1 . . Best Kill Streak 8 | . 6 2 4 8 Combat Bots Only 7 | . 6 2 3 7 Max Kills in Single Turn 2 | . 1 1 1 2 Gunslinging . | . . . . . Exploded 2 | . . . . 2 Melee 1 | . 1 . . . Uniques/NPCs Destroyed . | . . . . . Combat | -11 -10 -10 -9 -9 -------- Run | Jun Mat Min Mat Min Damage Taken 2433 | . 269 247 1127 790 Core 493 | . 7 64 224 198 Absorbed by Shields 296 | . 106 89 32 69 Regen/Repaired (Parts) 169 | . 82 . 87 . Core Remaining (%) 85 | 100 . 71 . . Volleys Fired 152 | . 38 23 72 19 Largest 3 | . 2 2 3 3 Hottest 75 | . 55 55 75 73 Shots Fired 378 | . 76 46 215 41 Gun 330 | . 54 23 214 39 Cannon 46 | . 22 23 1 . Launcher 2 | . . . . 2 Special . | . . . . . Kinetic 376 | . 76 46 215 39 Thermal . | . . . . . Explosive 2 | . . . . 2 Electromagnetic . | . . . . . Robot Hit Streak 11 | . 7 6 11 6 Robot Miss Streak 4 | . 2 4 3 3 Penetration Max . | . . . . . Secondary Targets 4 | . . . 1 3 Max Gunslinging Chain 1 | . . . 1 1 Shots Hit Robots 214 | . 49 22 121 22 Core Hits 109 | . 25 15 52 17 Critical Kills 1 | . . . 1 . Critical Parts Destroyed 1 | . . . 1 . Critical Strikes 2 | . . . 2 . Destroy 2 | . . . 2 . Melee Attacks . | . . . . . Impact . | . . . . . Slashing . | . . . . . Piercing . | . . . . . Sneak Attacks . | . . . . . Combat Hostiles . | . . . . . Follow-up Attacks . | . . . . . Damage Inflicted 2925 | 3 671 366 1449 436 Guns 2273 | . 477 147 1421 228 Cannons 406 | . 186 202 18 . Explosions 206 | . . . . 206 Melee . | . . . . . Ramming 40 | 3 8 17 10 2 Kinetic 2679 | . 663 349 1439 228 Thermal . | . . . . . Explosive 206 | . . . . 206 Electromagnetic . | . . . . . Impact . | . . . . . Slashing . | . . . . . Piercing . | . . . . . Highest Corruption 2 | . 1 1 . 2 Average Corruption 1 | . 1 1 . 2 Corruption Purged . | . . . . . Corruption Blocked . | . . . . . Effects 6 | . 1 5 . . Message Errors 2 | . . 2 . . Matter Fused 1 | . . 1 . . Heat Flow Errors 2 | . 1 1 . . Data Loss (minor) 1 | . . 1 . . Overload Shots . | . . . . . Overflow Damage . | . . . . . Projectiles . | . . . . . Explosions . | . . . . . Melee . | . . . . . Knockbacks 3 | . 2 1 . . Impact . | . . . . . Kinetic 3 | . 2 1 . . Secondary . | . . . . . Self-Inflicted Damage 26 | . . . . 26 Shots 2 | . . . . 2 Rammed 7 | 1 1 3 2 . Targets Rammed 13 | 1 3 4 4 1 Kicked . | . . . . . Crushed 6 | . 2 1 2 1 Highest Temperature 220 | . 220 190 50 39 Average Temperature 20 | . 40 28 14 17 Received Heat Transfer 437 | . 76 78 243 40 Siege Activations . | . . . . . Robots Corrupted . | . . . . . Combat Hostiles . | . . . . . Parts Fried . | . . . . . Impact Corruptions . | . . . . . Robots Melted . | . . . . . Combat Hostiles . | . . . . . Parts Melted . | . . . . . Heat Transferred . | . . . . . Parts Sabotaged . | . . . . . Parts Stolen . | . . . . . Parts Stripped . | . . . . . Power Chain Reactions . | . . . . . Missiles Intercepted . | . . . . . Alert | -11 -10 -10 -9 -9 ------- Run | Jun Mat Min Mat Min Peak Influence 381 | . 290 240 381 172 Initial 148 | . . 75 1 148 Average 133 | . 128 109 154 142 Maximum Alert Level 1 | . 1 1 1 . Low Security (%) 79 | 100 84 86 71 100 Level 1 20 | . 15 13 28 . Level 2 . | . . . . . Level 3 . | . . . . . Level 4 . | . . . . . Level 5 . | . . . . . High Security . | . . . . . Max Security . | . . . . . Squads Dispatched 9 | . 5 1 3 . Investigation 7 | . 5 . 2 . Extermination . | . . . . . Reinforcement 1 | . . . 1 . Assault 1 | . . 1 . . Garrison . | . . . . . Intercept . | . . . . . Searches Triggered . | . . . . . Construction Impeded . | . . . . . Haulers Reinforced . | . . . . . Active Scanning Responses . | . . . . . Cargo Convoy Interrupts . | . . . . . Stealth | -11 -10 -10 -9 -9 --------- Run | Jun Mat Min Mat Min Distress Signals 2 | . . . 2 . Communications Jammed . | . . . . . Distress Signals . | . . . . . Times Spotted 83 | . 18 10 41 14 Peak Tracking Total 10 | . 3 3 5 10 Tactical Retreats 4 | . . . 3 1 Traps | -11 -10 -10 -9 -9 ------- Run | Jun Mat Min Mat Min Traps Triggered 6 | . 5 . 1 . Indirectly . | . . . . . Trap Hack Attempts . | . . . . . Triggered . | . . . . . Disarmed . | . . . . . Reprogrammed 6 | . . . 6 . Reused . | . . . . . Traps Extracted . | . . . . . Installed . | . . . . . Triggered 2 | . . 2 . . Most Traps Carried 2 | . . 2 . . Machines | -11 -10 -10 -9 -9 ---------- Run | Jun Mat Min Mat Min Machines Disabled 3 | . . 1 2 . Max in Single Turn 1 | . . 1 1 . Machines Repaired . | . . . . . Machines Sabotaged . | . . . . . Overloaded Fab Kills . | . . . . . Hacking | -11 -10 -10 -9 -9 --------- Run | Jun Mat Min Mat Min Machines Accessed 21 | . 10 1 10 . Terminals 16 | . 8 . 8 . Fabricators . | . . . . . Repair Stations 2 | . 1 . 1 . Recycling Units 1 | . 1 . . . Scanalyzers 1 | . . . 1 . Garrison Access . | . . . . . Total Hacks 65 | . 29 1 35 . Successful 31 | . 14 1 16 . Failed 32 | . 14 . 18 . Catastrophic 3 | . 1 . 2 . Database Lockouts 2 | . 1 . 1 . Manual 45 | . 20 . 25 . Terminals 51 | . 22 . 29 . Fabricators . | . . . . . Repair Stations 9 | . 6 . 3 . Recycling Units 1 | . 1 . . . Scanalyzers 3 | . . . 3 . Garrison Access . | . . . . . Terminal Hacks 20 | . 8 1 11 . Robot Analysis 8 | . 5 . 3 . Prototype ID Bank 4 | . 2 . 2 . Open Door 1 | . . 1 . . Repair Station Index 1 | . . . 1 . Alert Level 1 | . . . 1 . Locate Traps 1 | . . . 1 . Reprogram Traps 1 | . . . 1 . Dispatch Records 1 | . . . 1 . Hauler Manifests 2 | . 1 . 1 . Fabricator Hacks . | . . . . . Repair Station Hacks 5 | . 3 . 2 . Scan Component 3 | . 2 . 1 . Repair 2 | . 1 . 1 . Recycling Unit Hacks . | . . . . . Scanalyzer 1 | . . . 1 . Insert Component 1 | . . . 1 . Garrison Access Hacks . | . . . . . Unauthorized Hacks 5 | . 3 . 2 . Terminals 4 | . 2 . 2 . Botnet 4 | . 2 . 2 . Fabricators . | . . . . . Repair Stations . | . . . . . Recycling Units 1 | . 1 . . . Tunnel 1 | . 1 . . . Scanalyzers . | . . . . . Garrison Access . | . . . . . Data Cores Recovered 1 | . . . 1 . Used . | . . . . . Hacking Detections 16 | . 8 . 8 . Full Trace Events 3 | . 1 . 2 . Feedback Events . | . . . . . Feedback Blocked . | . . . . . Robot Schematics Acquired . | . . . . . Robots Built . | . . . . . Authchips . | . . . . . Time . | . . . . . Total Robot Build Rating . | . . . . . Part Schematics Acquired . | . . . . . Parts Built . | . . . . . Authchips . | . . . . . Time . | . . . . . Total Part Build Rating . | . . . . . Parts Repaired 2 | . 1 . 1 . Time 52 | . 26 . 26 . Parts Recycled . | . . . . . Recycled Matter . | . . . . . Retrieved Matter . | . . . . . Retrieved Components . | . . . . . Parts Scanalyzed 1 | . . . 1 . Part Schematics Acquired . | . . . . . Parts Damaged . | . . . . . Bothacking | -11 -10 -10 -9 -9 ------------ Run | Jun Mat Min Mat Min Used RIF Installer . | . . . . . Robots Hacked . | . . . . . Non-combat . | . . . . . Combat . | . . . . . Robot Hacks Applied . | . . . . . Relay Couplers Released . | . . . . . Fabnet Peak Effective % . | . . . . . Robots Rewired . | . . . . . Allies Hacked . | . . . . . Hacks Repelled . | . . . . . Allies | -11 -10 -10 -9 -9 -------- Run | Jun Mat Min Mat Min Total Allies 1 | . . 1 . . Largest Group 1 | . . 1 . . Highest-Rated Group 31 | . . 31 . . Highest-Rated Ally 31 | . . 31 . . Total Orders 2 | . . . 2 . RETURN 2 | . . . 2 . Ally Attacks 16 | . . 4 12 . Total Damage 22 | . . 22 . . Kills 1 | . . 1 . . Allies Corrupted . | . . . . . Allies Melted . | . . . . . Intel | -11 -10 -10 -9 -9 ------- Run | Jun Mat Min Mat Min Robot Analysis Total 8 | . 5 . 3 . Derelict Logs Recovered 1 | . . 1 . . Drone Launches 14 | . . . 14 . Drone Recoveries 2 | . . . 2 . Exploration | -11 -10 -10 -9 -9 ------------- Run | Jun Mat Min Mat Min Turns Passed 4044 | 99 1083 892 1896 74 Spaces Moved 1987 | 56 571 505 843 12 Core 3 | 3 . . . . Treads 1984 | 53 571 505 843 12 Legs . | . . . . . Wheels . | . . . . . Hover . | . . . . . Flight . | . . . . . Fastest Speed 50 | 50 160 160 160 160 Average Speed 172 | 154 160 160 189 160 Slowest Speed 240 | 160 160 160 240 160 Overloaded Moves . | . . . . . Propulsion Burnouts . | . . . . . Robots Hopped . | . . . . . Cave-ins Triggered . | . . . . . Exploration Rate (%) 57 | 4 99 91 92 2 Regions Visited 4 Branch Regions 2 Pre-discovered Areas 2 | . 1 1 . . Known Exits Taken . | . . . . . Unknown Exits Taken 4 | 1 1 1 1 . Scrap Searched 1 | . . 1 . . Spaces Dug 10 | . . . . 10 Terrain Destroyed 25 | . . . . 25 Melee . | . . . . . Projectile . | . . . . . AOE 25 | . . . . 25 Terrain Rammed . | . . . . . Walls Destroyed . | . . . . . Machines Disabled . | . . . . . Actions | -11 -10 -10 -9 -9 --------- Run | Jun Mat Min Mat Min Total 2313 | 65 663 542 1007 36 Wait 98 | . 34 3 59 2 Move 1984 | 56 570 504 842 12 Hop . | . . . . . Pick Up 22 | 3 8 5 6 . Fast Attach 12 | 6 4 . 2 . Attach 7 | . . 1 5 1 Detach 2 | . . . 2 . Swap 11 | . 4 . 6 1 Drop 13 | . 2 2 9 . Fire 152 | . 38 23 72 19 Melee . | . . . . . Ram . | . . . . . Kick . | . . . . . Crush 12 | . 3 4 4 1 Escape Stasis . | . . . . . Rewire . | . . . . . Trap . | . . . . . Miscellaneous . | . . . . . Route ------- -11/Junkyard -10/Materials (discovered 5 exits: *Mat x3 / *Min x2) -10/Mines (discovered 2 exits: *Mat x2) -9/Materials (discovered 6 exits: [*Mat x3] / [*Min x2] / [*Sto]) -9/Mines History --------- Turn | Location | Event 39 | -11/Junkyard | Discovered new exit (range 15) 100 | -11/Junkyard | Entered Materials 196 | -10/Materials | Discovered new exit (range 6) 312 | -10/Materials | Build established: Mutant 336 | -10/Materials | Discovered new exit (range 12) 808 | -10/Materials | Discovered new exit (range 3) 950 | -10/Materials | Discovered new exit (range 16) 1048 | -10/Materials | Central database locked down 1112 | -10/Materials | Repaired Lgt. Treads 1152 | -10/Materials | Discovered new exit (range 9) 1183 | -10/Materials | Entered Mines 1472 | -10/Mines | Found a hidden stash of uninstalled traps 1511 | -10/Mines | Discovered new exit (range 9) 1526 | -10/Mines | Found the Drone Emporium 1537 | -10/Mines | Found Prototype Device 1615 | -10/Mines | Learned location of Zion (-7) 1637 | -10/Mines | Met a Derelict testing a Signal Generator 1824 | -10/Mines | Found a damaged Exp. Sensor Array with a note attached 1826 | -10/Mines | Discovered new exit (range 9) 1828 | -10/Mines | Found Prototype Device 2075 | -10/Mines | Entered Materials 2075 | -9/Materials | Evolved 2 slots: Utility x1, Weapon x1 2076 | -9/Materials | Identified Bomb Drone Bay 2221 | -9/Materials | Repaired Assault Rifle 2256 | -9/Materials | Discovered new exit (range 20) 2315 | -9/Materials | Discovered new exit (range 16) 2428 | -9/Materials | Discovered new exit (range 15) 2508 | -9/Materials | Build established: Gunner 2760 | -9/Materials | Discovered new exit (range 17) 2823 | -9/Materials | Central database locked down 2914 | -9/Materials | Identified Exp. Sensor Array 2950 | -9/Materials | Discovered new exit (range 13) 3388 | -9/Materials | Core integrity fell below 50% 3491 | -9/Materials | Discovered new exit (range 16) 3944 | -9/Materials | Build established: Tank 3971 | -9/Materials | Entered Mines 3972 | -9/Mines | Assembled infested the area 4039 | -9/Mines | Core integrity fell below 20% 4045 | -9/Mines | Destroyed by as-99779 with Assembled Maul Last Messages --------------- 04003_ Rocket Launcher destroyed. 04008_ Deuterium Engine destroyed. 04008_ as-10580 destroyed. 04008_ Switching to secondary target: as-16812. 04015_ The unstable cave ceiling collapses. 04016_ Assault Rifle destroyed. 04019_ as-20906 destroyed. 04019_ Switching to secondary target: as-16812. 04023_ The unstable cave ceiling collapses. 04024_ as-16812 destroyed. 04028_ The unstable cave ceiling collapses. 04030_ Shield Generator destroyed. 04031_ Lgt. Treads destroyed. 04033_ The unstable cave ceiling collapses. 04036_ Lgt. Treads destroyed. 04036_ System corrupted by crushing effect (+2). 04037_ Lgt. Assault Rifle destroyed. 04039_ as-62859 destroyed. 04042_ Lgt. Assault Rifle destroyed. 04044_ Hrd. Light Armor Plating destroyed. Map ----- +----------------------------------------------------+ | | | | | | | | | | | | | | | | | | | | | | | | | | | ????????????????????????????????? | | ????????????????????????????????? | | ????????????????????????????????? | | ????????????????????????????????? | | ????????????????????????????????? | | ????????????????????????????????? | | ????????????????????????????????? | | ????????????????????????????????? | | ??????????????????#######???????? | | ??????????????????# # #??????? | | ?????????????????## # ##?????? | | ?????????# ###### # %aaa#?????? | | ?????????# $ %| % aa@#?????? | | ?????????# ###### % % a##?????? | | ????????????????## #??????? | | ?????????????????### #???????? | | ??????????????????# ###????????? | | ??????????????????##????????????? | | ????????????????????????????????? | | ????????????????????????????????? | | ????????????????????????????????? | | ????????????????????????????????? | | ????????????????????????????????? | | ????????????????????????????????? | | ????????????????????????????????? | | ????????????????????????????????? | | ????????????????????????????????? | | ????????????????????????????????? | | ????????????????????????????????? | | ????????????????????????????????? | | ????????????????????????????????? | | ????????????????????????????????? | | ????????????????????????????????? | | ????????????????????????????????? | | ????????????????????????????????? | | ????????????????????????????????? | | ????????????????????????????????? | +----------------------------------------------------+ Best States ------------- Heat Dissipation 28 Energy Generation 14 Energy Capacity 275 Matter Stores 300 Matter Capacity 300 Sight Range 16 Terrain Scan Density 10 Armor Coverage 150 Evasion (%) 40 Recoil Reduction 2 Item Schematics ----------------- None Robot Schematics ------------------ None Fabricated ------------ Nothing Alien Tech Used ----------------- None Achievements -------------- None Challenges ------------ None Game ------ Seed CombatDisruptorThermoblaster Manual? 0 Play Time 00:18:26 Cumulative 165.7 hours Start 2024.02.05 @ 07:56:41 End 2024.02.05 @ 08:14:17 Sessions 1 Manual Loads 0 Difficulty Rogue Special Mode None Game No. 148 Rogue 148 Adventurer 0 Explorer 0 Win Type - Total 2 Types 2/0/0/0/0/0/0/0/0 Lore% 59 Gallery% 69 Achievement% 58 Wizard Run 0 Options --------- ASCII 0 Keyboard 1 Movement Numpad Keybinds 0 Fullscreen 2 Font 18/SmallcapsGlow Map View 76x50 Tactical HUD 1 Map Filters NONE Filters NONE Steam 1 RUN: 4890a61c-c2a4-4181-875c-b2606c0f652c